Cogmind - Beta 16 @@@ ROGUE MODE // 2025.10.30 @ 02:25:21 // Winter2019/RPGLIKE Player: Jaegerpls Result: Destroyed by B-75 Beast with Heavy Machine Gun Performance ------------- Evolutions (5) 2500 Regions Visited (20) 4000 Robots Destroyed (194) 970 Value Destroyed (6456) 6456 Prototype IDs (35) 700 Alien Tech Used (1) 200 Bonus (3488) 3488 TOTAL SCORE: 18314 Bonus ------- High Alert Combat Kills 1559 Follower Combat Kills 1129 Entered Garrisons 200 Met Imprinter 300 Was Imprinted 300 Cogmind --------- Core Integrity 0/700 Matter 224/300 Energy 580/580 System Corruption 0% Temperature Cool (12) Movement Flying (24) Location -5/Extension Parts ------- > --- POWER (3) -------- F-cell Engine Fusion Compressor Meta Core > --- PROPULSION (5+1) - Flight Unit (+) Cesium-ion Thruster Cesium-ion Thruster Improved Cesium-ion Thruster Improved Cesium-ion Thruster > --- UTILITY (9+1) ---- Weight Redist. System Improved Signal Interpreter (+) Advanced Melee Analysis Suite Microactuators Actuator Array Phase Shifter Point Defense System Improved Hacking Suite Makeshift System Shield > --- WEAPON (5) ------- Scythe Axe Chainsword Great Axe Enhanced Force Lance > --- INVENTORY (3) ---- Microactuators System Restoration Module Improved Datajack Peak State ------------ > --- POWER ------------ Light Nuclear Core Micro Nuclear Core Meta Core > --- PROPULSION ------- Flight Unit Cesium-ion Thruster Cesium-ion Thruster Cesium-ion Thruster Improved Cesium-ion Thruster Improved Cesium-ion Thruster > --- UTILITY ---------- Coolant Network Improved Signal Interpreter Advanced Melee Analysis Suite Makeshift System Shield Heart of Steel > --- WEAPON ----------- Improved Datajack Katana Scythe Axe Chainsword Great Axe > --- INVENTORY -------- Microactuators Microactuators Enhanced Force Lance [Rating: 115] Favorites ----------- Power Meta Core Engine F-cell Engine Power Core Meta Core Propulsion Cesium-ion Thruster Wheel Compact Wheel Flight Unit Cesium-ion Thruster Utility Improved Signal Interpreter Device Microactuators Storage Advanced Energy Well Processor Improved Signal Interpreter Hackware Hacking Suite Protection Hardened Light Armor Plating Weapon Axe Energy Gun Medium Laser Ballistic Gun Light Assault Rifle Special Weapon RU-N14's Throwing Claymores Impact Weapon Maul Slashing Weapon Axe Piercing Weapon Enhanced Force Lance Special Melee Weapon Improved Datajack Build | -11 -10 -10 -8 -8 -7 -7 -7 -7 -7 -7 -6 -6 -6 -6 -5 -5 -5 -5 -5 -5 ------- Run | Yrd Mat Sub Mat Sto Fac Was Fac Low Low Zio Pro Fac Low Low Fac Was Fac Gar Fac Ext Slots Evolved 18 | 3 . 2 4 2 2 . . . . 1 2 . . . . . 2 . . . Power 2 | . . . . 1 . . . . . . 1 . . . . . . . . . Propulsion 4 | 1 . 1 2 . . . . . . . . . . . . . . . . . Utility 8 | 1 . . 2 1 . . . . . 1 1 . . . . . 2 . . . Weapon 4 | 1 . 1 . . 2 . . . . . . . . . . . . . . . Parts Attached 85 | 7 12 4 10 9 15 . 2 1 1 3 1 4 2 . . 2 9 2 . 1 Power 10 | 1 2 1 . 2 . . . . 1 . . 1 . . . . 2 . . . Engine 5 | 1 2 . . 1 . . . . . . . . . . . . 1 . . . Core 5 | . . 1 . 1 . . . . 1 . . 1 . . . . 1 . . . Reactor . | . . . . . . . . . . . . . . . . . . . . . Propulsion 20 | 2 6 2 3 1 6 . . . . . . . . . . . . . . . Treads . | . . . . . . . . . . . . . . . . . . . . . Leg . | . . . . . . . . . . . . . . . . . . . . . Wheel 2 | 2 . . . . . . . . . . . . . . . . . . . . Hover . | . . . . . . . . . . . . . . . . . . . . . Flight 18 | . 6 2 3 1 6 . . . . . . . . . . . . . . . Utility 40 | 2 2 1 6 5 3 . 2 1 . 2 1 3 2 . . 1 7 1 . 1 Device 23 | 2 1 1 3 1 2 . 2 1 . 1 . 1 2 . . 1 4 1 . . Storage 1 | . . . . . . . . . . . . . . . . . . . . 1 Processor 8 | . 1 . 2 1 . . . . . . 1 2 . . . . 1 . . . Hackware 5 | . . . . 1 1 . . . . 1 . . . . . . 2 . . . Protection 3 | . . . 1 2 . . . . . . . . . . . . . . . . Artifact . | . . . . . . . . . . . . . . . . . . . . . Weapon 15 | 2 2 . 1 1 6 . . . . 1 . . . . . 1 . 1 . . Energy Gun 1 | 1 . . . . . . . . . . . . . . . . . . . . Energy Cannon . | . . . . . . . . . . . . . . . . . . . . . Ballistic Gun 2 | 1 . . . . . . . . . . . . . . . . . 1 . . Ballistic Cannon . | . . . . . . . . . . . . . . . . . . . . . Launcher . | . . . . . . . . . . . . . . . . . . . . . Special Weapon 1 | . . . . . . . . . . 1 . . . . . . . . . . Impact Weapon 4 | . 2 . . . 2 . . . . . . . . . . . . . . . Slashing Weapon 5 | . . . 1 . 4 . . . . . . . . . . . . . . . Piercing Weapon 1 | . . . . . . . . . . . . . . . . 1 . . . . Special Melee Weapon 1 | . . . . 1 . . . . . . . . . . . . . . . . Unidentified Prototypes 11 | . 1 1 1 . 2 . . . . 1 1 . 1 . . 1 1 . . 1 Parts Lost 3 | . . . . 1 . . . . . . . . . . . . . . . 2 Power . | . . . . . . . . . . . . . . . . . . . . . Propulsion 1 | . . . . . . . . . . . . . . . . . . . . 1 Utility 2 | . . . . 1 . . . . . . . . . . . . . . . 1 Weapon . | . . . . . . . . . . . . . . . . . . . . . Highest Loss Streak 2 | . . . . 1 . . . . . . . . . . . . . . . 2 To Critical Strikes . | . . . . . . . . . . . . . . . . . . . . . Average Backups 1 | . 1 1 1 2 2 2 2 2 2 1 1 . 1 2 2 2 1 3 3 3 Power . | . . . . . . . . . . . . . . . . . . . . . Propulsion . | . 1 . . . . . . . . . . . . . . . . . . . Utility 1 | . . . . 1 1 2 2 2 2 1 . . 1 2 2 1 . 2 2 2 Weapon . | . . . . . . . . . . . . . . . . 1 . . . . Tool/Special . | . . . . . . . . . . . . . . . . . . . . . Unused Backups 7 | . 2 . . . . . . . . . . . 1 . . . 2 . . 2 Power . | . . . . . . . . . . . . . . . . . . . . . Propulsion 1 | . 1 . . . . . . . . . . . . . . . . . . . Utility 2 | . . . . . . . . . . . . . 1 . . . . . . 1 Weapon 3 | . 1 . . . . . . . . . . . . . . . 2 . . . Tool/Special 1 | . . . . . . . . . . . . . . . . . . . . 1 Average Slot Usage (%) 95 | . 89 81 85 92 99 100 100 100 100 100 96 99 94 91 91 91 99 100 100 99 Engine 2 | . 14 4 . . . . . . . . . . . . . . 2 4 4 4 Core 8 | . . 4 6 7 10 10 10 10 10 9 8 12 13 13 13 13 9 8 8 8 Flight 28 | . 24 32 33 34 31 30 30 30 30 28 26 26 26 26 26 26 25 25 25 25 Device 14 | . 10 9 9 12 10 10 11 15 15 18 17 17 14 13 13 13 21 25 25 24 Processor 8 | . 9 9 12 10 10 10 8 5 5 4 7 8 8 8 8 8 8 8 8 8 Hackware 5 | . . . . . 8 10 10 10 10 9 8 8 5 4 4 4 7 8 8 8 Protection 1 | . . . 5 8 . . . . . . . . . . . . . . . . Impact Weapon 6 | . 22 18 12 11 5 . . . . . . . . . . . . . . . Slashing Weapon 13 | . . . 3 5 14 25 25 25 25 23 21 21 21 21 21 21 16 16 16 16 Special Melee Weapon 2 | . . . . . 5 5 5 5 5 4 4 4 4 4 4 4 1 . . . Peak Build Rating 115 | 9 11 26 43 54 75 75 76 75 76 83 86 91 103 102 102 115 110 109 109 113 Average Rating 66 | 6 8 20 38 44 66 75 75 75 75 80 85 88 97 102 102 100 102 108 109 108 On Entrance 71 | . 9 10 26 43 54 75 75 75 75 76 82 86 90 102 102 102 87 109 109 109 Avg Prop Armor Cover (%) . | . . . . . . . . . . . . . . . . . . . . . Naked Turns . | . . . . . . . . . . . . . . . . . . . . . Heaviest Build 56 | 10 11 13 27 31 29 29 34 34 35 37 37 42 48 48 48 48 56 55 55 55 Greatest Support 61 | 26 26 21 43 43 47 40 40 40 40 40 40 45 50 50 50 50 61 61 61 61 Greatest Overweight (x) 2 | . 2 . . . . . . . . . . . . . . . 1 . . . Average Overweight (x) . | . . . . . . . . . . . . . . . . . . . . . Largest Inventory Capacity 3 | 2 2 2 2 2 2 2 2 2 2 2 2 2 2 2 2 3 3 3 3 3 Average Capacity 2 | 1 2 2 2 2 2 2 2 2 2 2 2 2 2 2 2 2 3 3 3 3 Most Carried 3 | 1 2 2 2 2 2 2 2 2 2 2 2 2 2 2 2 3 3 3 3 3 Average Carried 1 | . 1 1 1 1 1 2 2 2 2 1 1 1 1 2 2 2 1 3 3 3 Final Capacity 3 | 2 2 2 2 2 2 2 2 2 2 2 2 2 2 2 2 3 3 3 3 3 Final Carried 3 | 1 2 1 2 2 2 2 2 2 2 2 2 2 2 2 2 2 3 3 3 3 Class Distribution -------------------- 65% | Hacker-Sprinter 10% | Scout 8% | Sprinter 8% | Gladiator 5% | Mutant Dominant Class ---------------- Gladiator | -10/Materials Sprinter | -10/Subcaves Scout | -8/Materials Scout | -8/Storage Hacker-Sprinter | -7/Factory Hacker-Sprinter | -7/Waste Hacker-Sprinter | -7/Factory Hacker-Sprinter | -7/Lower Caves Hacker-Sprinter | -7/Lower Caves Hacker-Sprinter | -7/Zion Hacker-Sprinter | -6/Proximity Caves Hacker-Sprinter | -6/Factory Hacker-Sprinter | -6/Lower Caves Hacker-Sprinter | -6/Lower Caves Hacker-Sprinter | -5/Factory Hacker-Sprinter | -5/Waste Hacker-Sprinter | -5/Factory Hacker-Sprinter | -5/Garrison Hacker-Sprinter | -5/Factory Hacker-Sprinter | -5/Extension Resources | -11 -10 -10 -8 -8 -7 -7 -7 -7 -7 -7 -6 -6 -6 -6 -5 -5 -5 -5 -5 -5 ----------- Run | Yrd Mat Sub Mat Sto Fac Was Fac Low Low Zio Pro Fac Low Low Fac Was Fac Gar Fac Ext Matter Collected 4652 | 292 138 36 120 97 240 . 53 32 10 40 30 40 60 . . 1778 956 431 160 139 Remotely . | . . . . . . . . . . . . . . . . . . . . . Salvage Created 8157 | 166 509 . 404 1570 826 . . . 248 . 176 329 74 98 . . 1902 1111 538 206 Parts 408 | 10 16 1 18 86 51 . . 5 21 . 9 10 4 6 . . 98 44 12 17 Haulers Intercepted 19 | . 2 . 5 4 4 . . . . . . 2 . . . . 2 . . . Recyclers Shooed 1 | . . . . 1 . . . . . . . . . . . . . . . . Parts Field Recycled . | . . . . . . . . . . . . . . . . . . . . . Retrieved Matter . | . . . . . . . . . . . . . . . . . . . . . Parts Self-Destructed 42 | . . 4 . . . . . 1 20 . 11 . . 6 . . . . . . Prevented 7 | . . . . . . . . . . . 5 . 2 . . . . . . . Parts Restored . | . . . . . . . . . . . . . . . . . . . . . Kills | -11 -10 -10 -8 -8 -7 -7 -7 -7 -7 -7 -6 -6 -6 -6 -5 -5 -5 -5 -5 -5 ------- Run | Yrd Mat Sub Mat Sto Fac Was Fac Low Low Zio Pro Fac Low Low Fac Was Fac Gar Fac Ext Combat Hostiles Destroyed 128 | . 10 2 6 24 9 . . 2 8 . 5 1 1 1 . . 35 16 4 4 Melee 117 | . 4 2 6 20 8 . . 2 8 . 5 1 1 1 . . 35 16 4 4 Guns 3 | . 3 . . . . . . . . . . . . . . . . . . . Classes Destroyed 19 | 2 6 . 1 2 1 . . 1 1 . 1 1 1 . . . 1 . . 1 Worker 6 | . 3 . . 1 . . . . . . . . . . . . 2 . . . Builder 2 | . . . . 2 . . . . . . . . . . . . . . . . Tunneler 6 | 5 1 . . . . . . . . . . . . . . . . . . . Hauler 19 | . 2 . 5 4 4 . . . . . . 2 . . . . 2 . . . Recycler 4 | 1 . . . 1 . . . . . . . . . . . . 1 . 1 . Mechanic 1 | . . . . . . . . . . . . 1 . . . . . . . . Operator 9 | . 1 . 1 1 3 . . . . . . 1 . . . . 2 . . . Drone 2 | . . . . . . . . . . . 2 . . . . . . . . . Watcher 19 | . 3 . 3 2 5 . . . . . . . . . . . 4 . 1 1 Swarmer 37 | . 5 2 . . 4 . . . 2 . 3 . . . . . 15 3 . 3 Grunt 42 | . 5 . 4 13 . . . . 4 . . . . . . . 9 5 2 . Duelist 3 | . . . . 1 . . . . . . . . . . . . . 1 1 . Sentry 28 | . . . 2 10 4 . . 1 1 . . 1 . 1 . . 5 2 1 . Demolisher 2 | . . . . . . . . . . . . . . . . . 1 1 . . Hunter 7 | . . . . . 1 . . . . . . . . . . . 2 4 . . Programmer 4 | . . . . . . . . . 1 . . . . . . . 3 . . . Behemoth 1 | . . . . . . . . . . . . . . . . . . . . 1 Thief 1 | . . . . . . . . 1 . . . . . . . . . . . . Mutant 1 | . . . . . . . . . . . . . 1 . . . . . . . Best Kill Streak 23 | 2 5 2 4 9 5 . . 2 7 . 4 3 1 1 . . 23 6 4 3 Combat Bots Only 19 | . 3 2 3 4 4 . . 2 7 . 4 1 1 1 . . 19 6 3 3 Max Kills in Single Turn 2 | 1 2 1 1 1 1 . . 1 1 . 2 1 1 1 . . 2 1 1 2 Gunslinging . | . . . . . . . . . . . . . . . . . . . . . Exploded . | . . . . . . . . . . . . . . . . . . . . . Melee 2 | . 1 1 1 1 1 . . 1 1 . 2 1 1 1 . . 2 1 1 2 Uniques/NPCs Destroyed . | . . . . . . . . . . . . . . . . . . . . . Combat | -11 -10 -10 -8 -8 -7 -7 -7 -7 -7 -7 -6 -6 -6 -6 -5 -5 -5 -5 -5 -5 -------- Run | Yrd Mat Sub Mat Sto Fac Was Fac Low Low Zio Pro Fac Low Low Fac Was Fac Gar Fac Ext Hostile Shots Fired 424 | . 78 14 28 73 29 . . 1 26 . 7 6 6 . . . 71 42 11 32 Missed 167 | . 30 4 9 28 14 . . 1 16 . 4 1 2 . . . 27 18 5 8 Intercepted 1 | . . . . . . . . . . . . . . . . . . 1 . . Hits 257 | . 48 10 19 45 15 . . . 10 . 3 5 4 . . . 44 24 6 24 Melee 10 | . . . . 10 . . . . . . . . . . . . . . . . Projectile 247 | . 48 10 19 35 15 . . . 10 . 3 5 4 . . . 44 24 6 24 AOE 5 | . . . . . . . . . . . . . . . . . 2 3 . . Critical Strikes 7 | . . . 1 4 . . . . . . . . 1 . . . 1 . . . Damage Taken 4716 | . 477 100 283 869 160 . . . 168 . 52 79 47 . . 26 1134 564 196 561 Core 3619 | . 402 80 189 520 121 . . . 142 . 40 59 38 . . 20 944 452 153 459 Absorbed by Shields . | . . . . . . . . . . . . . . . . . . . . . Redirected to Core 2812 | . 225 62 166 404 110 . . . 88 . 40 59 27 . . 20 684 408 153 366 Regen/Repaired (Parts) 32 | . 13 . . . . . . . . 19 . . . . . . . . . . Core Remaining (%) 88 | 100 . 44 . 100 . . . . . . 100 . . 100 . . . . . . Volleys Fired 36 | 22 14 . . . . . . . . . . . . . . . . . . . Largest 2 | 2 2 . . . . . . . . . . . . . . . . . . . Hottest 70 | 70 70 . . . . . . . . . . . . . . . . . . . Shots Fired 72 | 44 28 . . . . . . . . . . . . . . . . . . . Gun 72 | 44 28 . . . . . . . . . . . . . . . . . . . Cannon . | . . . . . . . . . . . . . . . . . . . . . Launcher . | . . . . . . . . . . . . . . . . . . . . . Special . | . . . . . . . . . . . . . . . . . . . . . Kinetic 36 | 22 14 . . . . . . . . . . . . . . . . . . . Thermal 36 | 22 14 . . . . . . . . . . . . . . . . . . . Explosive . | . . . . . . . . . . . . . . . . . . . . . Electromagnetic . | . . . . . . . . . . . . . . . . . . . . . Robot Hit Streak 7 | 7 3 . . . . . . . . . . . . . . . . . . . Robot Miss Streak 4 | 2 4 . . . . . . . . . . . . . . . . . . . Penetration Max . | . . . . . . . . . . . . . . . . . . . . . Secondary Targets 2 | . 2 . . . . . . . . . . . . . . . . . . . Max Gunslinging Chain 1 | . 1 . . . . . . . . . . . . . . . . . . . Shots Hit Robots 450 | 28 48 3 32 76 47 . . 6 15 . 9 14 13 1 . . 78 43 21 16 Core Hits 172 | 9 9 2 7 30 17 . . 2 9 . 5 6 3 1 . . 40 22 6 4 Critical Kills 3 | . . 1 2 . . . . . . . . . . . . . . . . . Critical Parts Destroyed 20 | . 8 . 6 5 1 . . . . . . . . . . . . . . . Critical Strikes 54 | 1 8 1 8 10 3 . . . . . . 3 1 . . . 11 2 5 1 Burn 1 | 1 . . . . . . . . . . . . . . . . . . . . Smash 23 | . 8 1 8 5 1 . . . . . . . . . . . . . . . Sever 18 | . . . . 5 2 . . . . . . 3 1 . . . 4 1 2 . Impale 12 | . . . . . . . . . . . . . . . . . 7 1 3 1 Melee Attacks 852 | . 77 30 54 123 113 . 15 7 27 . 23 38 16 2 2 . 146 108 28 43 Impact 199 | . 77 30 49 32 11 . . . . . . . . . . . . . . . Slashing 487 | . . . 5 86 102 . 15 7 27 . 23 38 16 2 2 . 72 54 17 21 Piercing 161 | . . . . . . . . . . . . . . . . . 74 54 11 22 Sneak Attacks 80 | . 9 . 10 18 15 . . 2 1 . . 7 . 1 . . 12 4 1 . Combat Hostiles 27 | . 1 . 4 3 4 . . 2 1 . . . . 1 . . 7 4 . . Follow-up Attacks 138 | . 5 . 3 15 13 . . 3 6 . 8 6 7 . . . 32 20 11 9 Damage Inflicted 22899 | 294 1946 122 1576 3135 2705 . . 327 703 . 458 942 718 88 . . 5239 2578 1183 885 Guns 452 | 294 158 . . . . . . . . . . . . . . . . . . . Cannons . | . . . . . . . . . . . . . . . . . . . . . Explosions . | . . . . . . . . . . . . . . . . . . . . . Melee 22447 | . 1788 122 1576 3135 2705 . . 327 703 . 458 942 718 88 . . 5239 2578 1183 885 Ramming . | . . . . . . . . . . . . . . . . . . . . . Kinetic 164 | 105 59 . . . . . . . . . . . . . . . . . . . Thermal 288 | 189 99 . . . . . . . . . . . . . . . . . . . Explosive . | . . . . . . . . . . . . . . . . . . . . . Electromagnetic . | . . . . . . . . . . . . . . . . . . . . . Impact 4167 | . 1788 122 1498 618 141 . . . . . . . . . . . . . . . Slashing 11619 | . . . 78 2517 2564 . . 327 703 . 458 942 718 88 . . 1576 915 468 265 Piercing 6661 | . . . . . . . . . . . . . . . . . 3663 1663 715 620 Highest Corruption 13 | . . . . 6 . 13 13 8 8 8 . . . . . . . . . . Average Corruption 5 | . . . . 2 . 8 9 8 8 8 . . . . . . . . . . Corruption Purged 5 | . . . . . . . 5 . . . . . . . . . . . . . Corruption Blocked . | . . . . . . . . . . . . . . . . . . . . . Effects 36 | . . . . 12 . 3 11 4 5 1 . . . . . . . . . . Message Errors 10 | . . . . 3 . . 4 . 2 1 . . . . . . . . . . Matter Fused 7 | . . . . 3 . 1 1 2 . . . . . . . . . . . . Heat Flow Errors 5 | . . . . 2 . . 3 . . . . . . . . . . . . . Energy Discharges 4 | . . . . 4 . . . . . . . . . . . . . . . . Parts Fused 1 | . . . . . . 1 . . . . . . . . . . . . . . Data Loss (minor) 4 | . . . . . . . 1 2 1 . . . . . . . . . . . Data Loss (major) 2 | . . . . . . . 1 . 1 . . . . . . . . . . . Alerts 2 | . . . . . . . 1 . 1 . . . . . . . . . . . Misdirections 1 | . . . . . . 1 . . . . . . . . . . . . . . Overload Shots . | . . . . . . . . . . . . . . . . . . . . . Overflow Damage 4314 | . 897 . 407 461 503 . . 9 9 . 154 99 215 . . . 1092 128 267 73 Projectiles . | . . . . . . . . . . . . . . . . . . . . . Explosions . | . . . . . . . . . . . . . . . . . . . . . Melee 4314 | . 897 . 407 461 503 . . 9 9 . 154 99 215 . . . 1092 128 267 73 Knockbacks 14 | . 9 . 2 2 1 . . . . . . . . . . . . . . . Impact 13 | . 9 . 2 1 1 . . . . . . . . . . . . . . . Kinetic . | . . . . . . . . . . . . . . . . . . . . . Secondary 1 | . . . . 1 . . . . . . . . . . . . . . . . Self-Inflicted Damage . | . . . . . . . . . . . . . . . . . . . . . Shots . | . . . . . . . . . . . . . . . . . . . . . Rammed . | . . . . . . . . . . . . . . . . . . . . . Targets Rammed . | . . . . . . . . . . . . . . . . . . . . . Kicked . | . . . . . . . . . . . . . . . . . . . . . Crushed . | . . . . . . . . . . . . . . . . . . . . . Highest Temperature 370 | 100 200 . 39 370 14 9 216 30 32 58 53 91 242 2 . 2 60 . 4 4 Average Temperature 32 | 40 100 . 12 63 2 3 81 12 12 17 15 36 116 2 . 2 14 . 4 4 Received Heat Transfer 1028 | . 141 12 126 351 12 . . . 36 . . . 80 . . . 102 63 45 60 Effects 8 | . 1 . . 6 . . . . . . . . 1 . . . . . . . Shutdowns 2 | . . . . 2 . . . . . . . . . . . . . . . . Energy Bleed 2 | . 1 . . 1 . . . . . . . . . . . . . . . . Interference 4 | . . . . 3 . . . . . . . . 1 . . . . . . . Siege Activations . | . . . . . . . . . . . . . . . . . . . . . Martial Activations . | . . . . . . . . . . . . . . . . . . . . . Shielding Activations . | . . . . . . . . . . . . . . . . . . . . . Robots Disrupted . | . . . . . . . . . . . . . . . . . . . . . Combat Hostiles . | . . . . . . . . . . . . . . . . . . . . . Robots Corrupted 16 | . 7 . 3 5 1 . . . . . . . . . . . . . . . Combat Hostiles 8 | . 3 . . 4 1 . . . . . . . . . . . . . . . Parts Fried 24 | . 12 . 4 8 . . . . . . . . . . . . . . . . Impact Corruptions 56 | . 30 . 15 10 1 . . . . . . . . . . . . . . . Robots Melted . | . . . . . . . . . . . . . . . . . . . . . Combat Hostiles . | . . . . . . . . . . . . . . . . . . . . . Parts Melted 2 | 1 1 . . . . . . . . . . . . . . . . . . . Heat Transferred 925 | 629 296 . . . . . . . . . . . . . . . . . . . Parts Sabotaged . | . . . . . . . . . . . . . . . . . . . . . Parts Stolen . | . . . . . . . . . . . . . . . . . . . . . Parts Stripped . | . . . . . . . . . . . . . . . . . . . . . Power Chain Reactions . | . . . . . . . . . . . . . . . . . . . . . Alert | -11 -10 -10 -8 -8 -7 -7 -7 -7 -7 -7 -6 -6 -6 -6 -5 -5 -5 -5 -5 -5 ------- Run | Yrd Mat Sub Mat Sto Fac Was Fac Low Low Zio Pro Fac Low Low Fac Was Fac Gar Fac Ext Maximum Alert Level 5 | . 1 . 1 2 1 . . . . . . 1 . . . . 4 5 3 2 Low Security (%) 51 | 100 75 . 66 21 66 100 100 . . . . 21 . . 100 100 20 . . . Level 1 20 | . 24 . 33 31 33 . . . . . . 78 . . . . 18 . . . Level 2 9 | . . . . 46 . . . . . . . . . . . . 6 . . 100 Level 3 8 | . . . . . . . . . . . . . . . . . 13 53 100 . Level 4 8 | . . . . . . . . . . . . . . . . . 40 36 . . Level 5 . | . . . . . . . . . . . . . . . . . . 10 . . High Security . | . . . . . . . . . . . . . . . . . . . . . Max Security . | . . . . . . . . . . . . . . . . . . . . . Peak Influence 1650 | 5 265 . 223 619 320 34 24 . . . . 237 . . 2 38 1317 1650 994 521 Initial 910 | . 3 . . 78 210 34 . . . . . 191 . . . . . 910 865 471 Average 333 | 1 122 . 146 353 117 11 . . . . . 216 . . . 5 718 1190 912 490 Influence Increases 6779 | 30 573 71 619 902 782 . 39 20 170 . 221 240 5 20 2 48 1971 760 179 127 Destroy 0b10 Robot/C 3520 | . 200 60 320 540 340 . . 20 160 . 120 20 . 20 . . 1140 420 80 80 Destroy 0b10 Robot/NC 435 | 30 50 . 50 55 65 . . . . . 15 20 5 . . . 120 5 10 10 Destroy Leader 802 | . 60 10 68 172 138 . . . 10 . 20 14 . . . . 226 60 22 2 Allied During Kill 535 | . . 1 43 22 47 . . . . . 21 12 . . . . 176 142 65 6 Successful Hack 179 | . 30 . 10 11 112 . 16 . . . . . . . . . . . . . Disable Machine 120 | . 15 . 15 . . . . . . . . 15 . . . . 30 30 . 15 Destroy Structure 333 | . 23 . 8 12 35 . 8 . . . . 9 . . 2 48 84 88 2 14 Advance Influence 150 | . . . . . . . . . . . . 150 . . . . . . . . Partial Spotted 210 | . 15 . 75 15 45 . 15 . . . . . . . . . 30 15 . . Lose Combat Pursuer 495 | . 180 . 30 75 . . . . . . 45 . . . . . 165 . . . Influence Decreases 6341 | 25 357 292 432 627 1145 99 15 44 50 120 155 115 196 20 . 50 670 411 865 653 Entered New Map 2433 | . 2 107 . 109 252 65 . 10 . 120 . 25 72 . . 2 . 391 785 493 Time Decay 2385 | 25 355 165 210 278 337 34 15 34 50 . 140 50 124 20 . 48 340 . 80 80 Lost Part 30 | . . . . 10 . . . . . . . . . . . . . . . 20 Lost Ally 825 | . . 20 80 80 180 . . . . . 15 40 . . . . 330 20 . 60 Purge Threat 668 | . . . 142 150 376 . . . . . . . . . . . . . . . Squads Dispatched 41 | . 3 . 2 11 11 . . . . . . 2 . . . . 11 . . 1 Investigation 13 | . 2 . 2 3 2 . . . . . . . . . . . 3 . . 1 Extermination 5 | . . . . . 3 . . . . . . . . . . . 2 . . . Reinforcement 10 | . 1 . . 1 4 . . . . . . 2 . . . . 2 . . . Assault 5 | . . . . 4 . . . . . . . . . . . . 1 . . . Garrison 8 | . . . . 3 2 . . . . . . . . . . . 3 . . . Intercept . | . . . . . . . . . . . . . . . . . . . . . Searches Triggered . | . . . . . . . . . . . . . . . . . . . . . Construction Impeded 1 | . . . . . . . . . . . . . . . . . 1 . . . Haulers Reinforced 3 | . . . . . 2 . . . . . . . . . . . 1 . . . Active Scanning Responses . | . . . . . . . . . . . . . . . . . . . . . Cargo Convoy Interrupts . | . . . . . . . . . . . . . . . . . . . . . Stealth | -11 -10 -10 -8 -8 -7 -7 -7 -7 -7 -7 -6 -6 -6 -6 -5 -5 -5 -5 -5 -5 --------- Run | Yrd Mat Sub Mat Sto Fac Was Fac Low Low Zio Pro Fac Low Low Fac Was Fac Gar Fac Ext Distress Signals 11 | . 1 . 2 . 2 . . . . . . 2 . . . . 4 . . . Communications Jammed . | . . . . . . . . . . . . . . . . . . . . . Distress Signals . | . . . . . . . . . . . . . . . . . . . . . Times Spotted 222 | . 26 5 17 33 16 5 . 1 8 . 7 5 1 . . 6 56 21 5 10 Peak Tracking Total 12 | . 5 3 4 4 3 5 . 1 7 . 3 5 1 . . 6 12 4 3 6 Tactical Retreats 15 | . 6 . 1 4 . . . . . . 1 . . . . . 3 . . . Traps | -11 -10 -10 -8 -8 -7 -7 -7 -7 -7 -7 -6 -6 -6 -6 -5 -5 -5 -5 -5 -5 ------- Run | Yrd Mat Sub Mat Sto Fac Was Fac Low Low Zio Pro Fac Low Low Fac Was Fac Gar Fac Ext Traps Triggered 12 | . 1 . 1 4 1 . . . . . . 1 . . 1 . 1 2 . . Indirectly . | . . . . . . . . . . . . . . . . . . . . . Trap Hack Attempts . | . . . . . . . . . . . . . . . . . . . . . Triggered . | . . . . . . . . . . . . . . . . . . . . . Disarmed . | . . . . . . . . . . . . . . . . . . . . . Reprogrammed 6 | . . . . . 6 . . . . . . . . . . . . . . . Reused . | . . . . . . . . . . . . . . . . . . . . . Traps Extracted . | . . . . . . . . . . . . . . . . . . . . . Installed . | . . . . . . . . . . . . . . . . . . . . . Triggered . | . . . . . . . . . . . . . . . . . . . . . Machines | -11 -10 -10 -8 -8 -7 -7 -7 -7 -7 -7 -6 -6 -6 -6 -5 -5 -5 -5 -5 -5 ---------- Run | Yrd Mat Sub Mat Sto Fac Was Fac Low Low Zio Pro Fac Low Low Fac Was Fac Gar Fac Ext Machines Disabled 12 | . 1 1 1 . . . . . . . 1 1 1 . . . 2 2 . 2 Max in Single Turn 1 | . 1 1 1 . . . . . . . 1 1 1 . . . . 1 . 1 Machines Repaired . | . . . . . . . . . . . . . . . . . . . . . Machines Dismantled . | . . . . . . . . . . . . . . . . . . . . . Machines Sabotaged . | . . . . . . . . . . . . . . . . . . . . . Overloaded Fab Kills . | . . . . . . . . . . . . . . . . . . . . . Hacking | -11 -10 -10 -8 -8 -7 -7 -7 -7 -7 -7 -6 -6 -6 -6 -5 -5 -5 -5 -5 -5 --------- Run | Yrd Mat Sub Mat Sto Fac Was Fac Low Low Zio Pro Fac Low Low Fac Was Fac Gar Fac Ext Machines Accessed 78 | . 10 1 8 12 23 . 4 1 1 . 2 1 2 1 1 . 8 . 2 1 Terminals 47 | . 7 . 6 10 15 . 1 . 1 . 1 . 1 1 1 . 1 . 1 1 Fabricators 2 | . . . . . . . . . . . . . . . . . 2 . . . Repair Stations 2 | . 1 . 1 . . . . . . . . . . . . . . . . . Recycling Units 11 | . 2 . . 1 3 . 2 . . . . 1 . . . . 2 . . . Scanalyzers 5 | . . . 1 . 2 . . . . . . . . . . . 1 . 1 . Garrison Access 7 | . . . . 1 3 . 1 . . . . . . . . . 2 . . . Total Hacks 290 | . 39 9 29 31 106 . 19 1 7 . 2 3 2 6 1 . 26 . 4 5 Successful 179 | . 22 9 17 16 68 . 10 1 7 . 2 2 2 6 1 . 12 . 4 . Failed 110 | . 17 . 12 15 37 . 9 . . . . 1 . . . . 14 . . 5 Catastrophic 13 | . 1 . 2 4 6 . . . . . . . . . . . . . . . Database Lockouts 1 | . . . . . 1 . . . . . . . . . . . . . . . Manual 144 | . 26 . 16 20 37 . 14 . . . . 4 . . . . 20 3 4 . Terminals 190 | . 32 . 24 27 78 . 5 . 7 . 1 . 1 6 1 . 2 . 1 5 Fabricators 6 | . . . . . . . . . . . . . . . . . 6 . . . Repair Stations 4 | . 2 . 2 . . . . . . . . . . . . . . . . . Recycling Units 33 | . 5 . . 2 7 . 8 . . . . 3 . . . . 8 . . . Scanalyzers 23 | . . . 3 . 10 . . . . . . . . . . . 7 . 3 . Garrison Access 22 | . . . . 2 11 . 6 . . . . . . . . . 3 . . . Terminal Hacks 85 | . 5 9 6 7 35 . 2 1 7 . 2 . 2 6 1 . 1 . 1 . Record 36 | . 1 8 2 1 6 . 2 . 7 . 2 . 1 6 . . . . . . Robot Analysis 2 | . 2 . . . . . . . . . . . . . . . . . . . Prototype ID Bank 1 | . . . . . 1 . . . . . . . . . . . . . . . Open Door 4 | . . . . 2 . . . 1 . . . . 1 . . . . . . . Open DSF 5 | . . . . . 2 . . . . . . . . . 1 . 1 . 1 . Level Access Points 1 | . . . . . 1 . . . . . . . . . . . . . . . Branch Access Points 1 | . . . . . 1 . . . . . . . . . . . . . . . Emergency Access Points 2 | . . . 1 . 1 . . . . . . . . . . . . . . . Unreport Threat 8 | . . . 2 1 5 . . . . . . . . . . . . . . . Locate Traps 1 | . 1 . . . . . . . . . . . . . . . . . . . Reprogram Traps 2 | . . . . . 2 . . . . . . . . . . . . . . . Dispatch Records 1 | . . . . . 1 . . . . . . . . . . . . . . . Maintenance Status 1 | . . . . . 1 . . . . . . . . . . . . . . . Surveillance Status 1 | . . . . . 1 . . . . . . . . . . . . . . . Transport Status 1 | . . . . . 1 . . . . . . . . . . . . . . . Investigation Status 1 | . . . . . 1 . . . . . . . . . . . . . . . Recall Investigation 5 | . . . . 2 3 . . . . . . . . . . . . . . . Recall Extermination 1 | . . . . 1 . . . . . . . . . . . . . . . . Recall Reinforcements 3 | . . . . . 3 . . . . . . . . . . . . . . . Hauler Manifests 1 | . . . . . 1 . . . . . . . . . . . . . . . Registered Components 1 | . . . . . 1 . . . . . . . . . . . . . . . Zone Layout 5 | . 1 . 1 . 3 . . . . . . . . . . . . . . . Proto ID Catalog 1 | . . 1 . . . . . . . . . . . . . . . . . . Fabricator Hacks 4 | . . . . . . . . . . . . . . . . . 4 . . . Load Schematic 2 | . . . . . . . . . . . . . . . . . 2 . . . Build 2 | . . . . . . . . . . . . . . . . . 2 . . . Repair Station Hacks 2 | . 2 . . . . . . . . . . . . . . . . . . . Scan Component 1 | . 1 . . . . . . . . . . . . . . . . . . . Repair 1 | . 1 . . . . . . . . . . . . . . . . . . . Recycling Unit Hacks 12 | . 3 . . 1 3 . 2 . . . . 1 . . . . 2 . . . Report Inventory 11 | . 2 . . 1 3 . 2 . . . . 1 . . . . 2 . . . Retrieve Components 1 | . 1 . . . . . . . . . . . . . . . . . . . Scanalyzer 15 | . . . 2 . 6 . . . . . . . . . . . 4 . 3 . Retrieve Study 15 | . . . 2 . 6 . . . . . . . . . . . 4 . 3 . Garrison Access Hacks 1 | . . . . . . . . . . . . . . . . . 1 . . . Unlock Access 1 | . . . . . . . . . . . . . . . . . 1 . . . Unauthorized Hacks 60 | . 12 . 9 8 24 . 6 . . . . 1 . . . . . . . . Terminals 40 | . 11 . 8 6 15 . . . . . . . . . . . . . . . Track 4 | . 2 . 1 . 1 . . . . . . . . . . . . . . . Assimilate 1 | . 1 . . . . . . . . . . . . . . . . . . . Botnet 9 | . 3 . 2 2 2 . . . . . . . . . . . . . . . Disrupt 2 | . . . . . 2 . . . . . . . . . . . . . . . Operators 1 | . . . . . 1 . . . . . . . . . . . . . . . Skim 23 | . 5 . 5 4 9 . . . . . . . . . . . . . . . Fabricators . | . . . . . . . . . . . . . . . . . . . . . Repair Stations 1 | . . . 1 . . . . . . . . . . . . . . . . . Mechanics 1 | . . . 1 . . . . . . . . . . . . . . . . . Recycling Units 8 | . 1 . . 1 2 . 3 . . . . 1 . . . . . . . . Monitor 1 | . . . . . . . 1 . . . . . . . . . . . . . Reject 6 | . 1 . . 1 1 . 2 . . . . 1 . . . . . . . . Mask 1 | . . . . . 1 . . . . . . . . . . . . . . . Scanalyzers . | . . . . . . . . . . . . . . . . . . . . . Garrison Access 11 | . . . . 1 7 . 3 . . . . . . . . . . . . . Broadcast 3 | . . . . . 2 . 1 . . . . . . . . . . . . . Reprogram 5 | . . . . 1 3 . 1 . . . . . . . . . . . . . Watchers 3 | . . . . . 2 . 1 . . . . . . . . . . . . . Data Cores Recovered 6 | . . . 1 . 3 . . . . . . . . . . . 2 . . . Used 1 | . . . . . 1 . . . . . . . . . . . . . . . Hacking Detections 49 | . 8 . 7 10 15 . 2 . . . . . . 1 . . 4 . 1 1 Full Trace Events 5 | . . . . 1 . . . . . . . . . . . . 3 . . 1 Feedback Events . | . . . . . . . . . . . . . . . . . . . . . Feedback Blocked . | . . . . . . . . . . . . . . . . . . . . . Robot Schematics Acquired 5 | . . . . . . . . . . . . . . . . . 5 . . . Robots Built . | . . . . . . . . . . . . . . . . . . . . . Authchips . | . . . . . . . . . . . . . . . . . . . . . Time . | . . . . . . . . . . . . . . . . . . . . . Total Robot Build Rating . | . . . . . . . . . . . . . . . . . . . . . Part Schematics Acquired 9 | . . . . . . . . . . . . . . . . . 9 . . . Parts Built 1 | . . . . . . . . . . . . . . . . . 1 . . . Authchips . | . . . . . . . . . . . . . . . . . . . . . Time 168 | . . . . . . . . . . . . . . . . . 168 . . . Total Part Build Rating 6 | . . . . . . . . . . . . . . . . . 6 . . . Part Studies Acquired 13 | . . . 2 . 6 . . . . . . . . . . . 3 . 2 . Parts Repaired 1 | . 1 . . . . . . . . . . . . . . . . . . . Time 32 | . 32 . . . . . . . . . . . . . . . . . . . Parts Recycled . | . . . . . . . . . . . . . . . . . . . . . Recycled Matter . | . . . . . . . . . . . . . . . . . . . . . Retrieved Matter . | . . . . . . . . . . . . . . . . . . . . . Retrieved Components 1 | . 1 . . . . . . . . . . . . . . . . . . . Parts Scanalyzed . | . . . . . . . . . . . . . . . . . . . . . Part Schematics Acquired . | . . . . . . . . . . . . . . . . . . . . . Parts Damaged . | . . . . . . . . . . . . . . . . . . . . . Bothacking | -11 -10 -10 -8 -8 -7 -7 -7 -7 -7 -7 -6 -6 -6 -6 -5 -5 -5 -5 -5 -5 ------------ Run | Yrd Mat Sub Mat Sto Fac Was Fac Low Low Zio Pro Fac Low Low Fac Was Fac Gar Fac Ext Used RIF Installer . | . . . . . . . . . . . . . . . . . . . . . Robots Hacked . | . . . . . . . . . . . . . . . . . . . . . Non-combat . | . . . . . . . . . . . . . . . . . . . . . Combat . | . . . . . . . . . . . . . . . . . . . . . Robot Hacks Applied . | . . . . . . . . . . . . . . . . . . . . . Relay Couplers Released . | . . . . . . . . . . . . . . . . . . . . . Fabnet Peak Effective % . | . . . . . . . . . . . . . . . . . . . . . Robots Rewired 3 | . . . . 3 . . . . . . . . . . . . . . . . Allies Hacked 1 | . . . . . . . . . . . . . . . . . 1 . . . Hacks Repelled . | . . . . . . . . . . . . . . . . . . . . . Allies | -11 -10 -10 -8 -8 -7 -7 -7 -7 -7 -7 -6 -6 -6 -6 -5 -5 -5 -5 -5 -5 -------- Run | Yrd Mat Sub Mat Sto Fac Was Fac Low Low Zio Pro Fac Low Low Fac Was Fac Gar Fac Ext Total Allies 57 | . . 6 . 14 3 . . . . 4 . . . . . 21 1 2 4 2 Largest Group 20 | . . 5 5 10 10 . . . . 4 4 3 . . . 20 20 2 6 8 Highest-Rated Group 801 | . . 95 95 173 173 . . . . 159 159 107 . . . 801 801 192 368 427 Highest-Rated Ally 99 | . . 19 19 31 32 . . . . 41 41 40 . . . 99 99 96 96 96 Zionite Dispatches 3 | . . . . . . . . . . . . . . . . . 1 . 2 . Hacker 1 | . . . . . . . . . . . . . . . . . . . 1 . Melee Resupply 1 | . . . . . . . . . . . . . . . . . . . 1 . Hacking Resupply 1 | . . . . . . . . . . . . . . . . . 1 . . . Total Orders 1 | . . . . . 1 . . . . . . . . . . . . . . . ROAM 1 | . . . . . 1 . . . . . . . . . . . . . . . Ally Attacks 478 | . . 3 42 32 91 . . . . . 28 . . . . 104 143 23 1 11 Total Damage 13272 | . . 59 556 384 1252 . . . . . 705 . . . . 4108 4903 1064 18 223 Kills 75 | . . 1 12 3 9 . . . . . 3 . . . . 6 35 5 . 1 Allies Corrupted . | . . . . . . . . . . . . . . . . . . . . . Allies Melted 1 | . . . . . . . . . . . . . . . . . 1 . . . Intel | -11 -10 -10 -8 -8 -7 -7 -7 -7 -7 -7 -6 -6 -6 -6 -5 -5 -5 -5 -5 -5 ------- Run | Yrd Mat Sub Mat Sto Fac Was Fac Low Low Zio Pro Fac Low Low Fac Was Fac Gar Fac Ext Active Infowar (turns) 1669 | 67 536 28 478 250 . . . 2 . . . 2 . . . . 137 169 . . Optics 728 | . . . 478 250 . . . . . . . . . . . . . . . . Sensors 469 | . 441 28 . . . . . . . . . . . . . . . . . . Terrain 162 | 67 95 . . . . . . . . . . . . . . . . . . . Seismic 159 | 64 95 . . . . . . . . . . . . . . . . . . . Machine Analysis 2 | . . . . . . . . . . . . 2 . . . . . . . . Triangulation 306 | . . . . . . . . . . . . . . . . . 137 169 . . ECM 2 | . . . . . . . . 2 . . . . . . . . . . . . Robot Analysis Total 2 | . 2 . . . . . . . . . . . . . . . . . . . Derelict Logs Recovered 9 | . . 2 . . . . . 2 1 2 . . 2 . . . . . . . Drone Launches . | . . . . . . . . . . . . . . . . . . . . . Drone Recoveries . | . . . . . . . . . . . . . . . . . . . . . Zionite Intel Received 5 | . . . . . . . . . . . . . . . . . 5 . . . Emergency Access 1 | . . . . . . . . . . . . . . . . . 1 . . . Prototype Schematics 1 | . . . . . . . . . . . . . . . . . 1 . . . Unaware Schematics 1 | . . . . . . . . . . . . . . . . . 1 . . . Active Garrisons 1 | . . . . . . . . . . . . . . . . . 1 . . . Depthwide Sectors/-1 1 | . . . . . . . . . . . . . . . . . 1 . . . Exploration | -11 -10 -10 -8 -8 -7 -7 -7 -7 -7 -7 -6 -6 -6 -6 -5 -5 -5 -5 -5 -5 ------------- Run | Yrd Mat Sub Mat Sto Fac Was Fac Low Low Zio Pro Fac Low Low Fac Was Fac Gar Fac Ext Turns Passed 7231 | 193 810 419 483 619 914 130 265 101 138 473 368 119 286 87 7 319 780 397 162 161 Spaces Moved 14045 | 136 997 709 760 749 2428 178 469 396 453 1103 988 315 1008 349 19 377 1456 529 259 367 Core 7 | 7 . . . . . . . . . . . . . . . . . . . . Treads . | . . . . . . . . . . . . . . . . . . . . . Legs . | . . . . . . . . . . . . . . . . . . . . . Wheels 153 | 129 24 . . . . . . . . . . . . . . . . . . . Hover . | . . . . . . . . . . . . . . . . . . . . . Flight 13885 | . 973 709 760 749 2428 178 469 396 453 1103 988 315 1008 349 19 377 1456 529 259 367 Fastest Speed 20 | 50 34 29 24 23 20 20 20 20 20 20 20 20 20 20 20 20 20 20 20 20 Average Speed 23 | 88 38 30 25 23 21 20 20 20 20 20 20 20 20 20 20 20 20 20 20 20 Slowest Speed 200 | 100 200 34 29 24 23 20 20 20 20 20 20 20 20 20 20 20 95 20 20 20 Overloaded Moves . | . . . . . . . . . . . . . . . . . . . . . Propulsion Burnouts . | . . . . . . . . . . . . . . . . . . . . . Robots Hopped 7 | . . . . . . . 2 . . . . . 3 . . . 1 . . 1 Potential Cave-ins . | . . . . . . . . . . . . . . . . . . . . . Cave-ins Triggered . | . . . . . . . . . . . . . . . . . . . . . Exploration Rate (%) 57 | 5 100 46 57 94 64 71 11 58 60 90 93 10 94 36 . 92 45 64 10 45 Regions Visited 20 Branch Regions 9 Pre-discovered Areas 12 | . . 1 . . 1 . . . 1 3 . . . 1 . . 5 . . . Known Exits Taken 14 | . 1 1 1 1 . . 1 1 1 1 1 1 1 1 . . 1 . 1 . Unknown Exits Taken 1 | 1 . . . . . . . . . . . . . . . . . . . . Scrap Searched 14 | . . . . . . . . 7 1 2 . . 4 . . . . . . . Spaces Dug 146 | . 23 2 8 12 35 . 8 . 1 . 2 9 . . 1 . 20 17 1 7 Terrain Destroyed 146 | . 23 2 8 12 35 . 8 . 1 . 2 9 . . 1 . 20 17 1 7 Melee 146 | . 23 2 8 12 35 . 8 . 1 . 2 9 . . 1 . 20 17 1 7 Projectile . | . . . . . . . . . . . . . . . . . . . . . AOE . | . . . . . . . . . . . . . . . . . . . . . Terrain Rammed . | . . . . . . . . . . . . . . . . . . . . . Walls Destroyed . | . . . . . . . . . . . . . . . . . . . . . Machines Disabled . | . . . . . . . . . . . . . . . . . . . . . Actions | -11 -10 -10 -8 -8 -7 -7 -7 -7 -7 -7 -6 -6 -6 -6 -5 -5 -5 -5 -5 -5 --------- Run | Yrd Mat Sub Mat Sto Fac Was Fac Low Low Zio Pro Fac Low Low Fac Was Fac Gar Fac Ext Total 16987 | 165 1259 858 951 1012 2691 271 623 411 479 1354 1147 351 1078 363 20 618 1853 722 345 416 Wait 1975 | . 151 114 105 114 138 94 146 6 5 245 140 10 46 14 . 230 231 89 76 21 Move 14010 | 135 996 708 759 748 2426 177 464 395 452 1102 987 314 1001 348 19 376 1453 527 258 365 Hop 7 | . . . . . . . 2 . . . . . 3 . . . 1 . . 1 Pick Up 31 | 1 4 2 1 1 5 . . . . 2 1 1 2 . . 2 9 . . . Fast Attach 47 | 7 5 . 8 6 5 . 1 1 . . 2 1 3 . . 3 2 2 . 1 Attach 15 | . 1 3 1 1 . . . . . 2 1 1 . . . 2 3 . . . Detach 4 | . . . 1 1 1 . . . . . . . . . . . 1 . . . Swap 53 | . 8 1 2 2 17 . 2 1 1 2 . 4 1 . . 2 8 1 . 1 Drop 60 | . 10 1 4 4 15 . . 1 1 1 1 1 7 . . 3 8 2 . 1 Fire 36 | 22 14 . . . . . . . . . . . . . . . . . . . Melee 534 | . 66 25 44 96 76 . 8 3 14 . 11 19 7 1 1 . 76 54 11 22 Ram . | . . . . . . . . . . . . . . . . . . . . . Kick . | . . . . . . . . . . . . . . . . . . . . . Crush . | . . . . . . . . . . . . . . . . . . . . . Escape Stasis 48 | . . . . . 2 . . . . . . . . . . . 15 31 . . Rewire . | . . . . . . . . . . . . . . . . . . . . . Trap . | . . . . . . . . . . . . . . . . . . . . . Miscellaneous 167 | . 4 4 26 39 6 . . 4 6 . 4 . 8 . . . 46 16 . 4 Route ------- -11/Scrapyard -10/Materials (discovered 6 exits: *Mat x3 / *Min x2 / *Sub) -10/Subcaves -8/Materials (discovered 3 exits: *Fac / *Sto x2) -8/Storage -7/Factory (discovered 6 exits: *Fac x4 / *Low x2) -7/Waste -7/Factory -7/Lower Caves -7/Lower Caves (discovered 2 exits: *Fac / *Zio) -7/Zion -6/Proximity Caves -6/Factory (discovered 5 exits: Fac x4 / *Low) -6/Lower Caves -6/Lower Caves (discovered 2 exits: *Fac / Dat) -5/Factory (discovered 5 exits: Fac / Upp x2 / Ext / DSF) -5/Waste -5/Factory (discovered 2 exits: Upp / Gar) -5/Garrison (discovered 2 exits: *Fac x2) -5/Factory -5/Extension History --------- Turn | Location | Event 6 | -11/Scrapyard | Discovered new exit (range 16) 8 | -11/Scrapyard | Upgraded with Propulsion slot (x1) 8 | -11/Scrapyard | Upgraded with Utility slot (x1) 8 | -11/Scrapyard | Upgraded with Weapon slot (x1) 194 | -11/Scrapyard | Entered Materials 310 | -10/Materials | Build established: Mutant 498 | -10/Materials | Discovered new exit (range 11) 599 | -10/Materials | Discovered new exit (range 15) 610 | -10/Materials | Identified exit to Materials 693 | -10/Materials | Discovered new exit (range 16) 698 | -10/Materials | Identified exit to Mines 718 | -10/Materials | Build established: Gladiator 718 | -10/Materials | Discovered new exit (range 10) 721 | -10/Materials | Identified exit to Subcaves 810 | -10/Materials | Core integrity fell below 50% 835 | -10/Materials | Discovered exit to Materials (range 16) 914 | -10/Materials | Discovered exit to Materials (range 16) 973 | -10/Materials | Repaired VTOL Module 994 | -10/Materials | Loaded intel: 8 terminal locations 1004 | -10/Materials | Entered Subcaves 1005 | -10/Subcaves | Shifting Twisted Machinery released Sub. Shrapnel Launcher 1006 | -10/Subcaves | Reached level 2 1006 | -10/Subcaves | Upgraded with Propulsion slot (x1) 1006 | -10/Subcaves | Upgraded with Weapon slot (x1) 1017 | -10/Subcaves | Shifting Twisted Machinery released Riot Gun 1030 | -10/Subcaves | Visited triangular shrine 1031 | -10/Subcaves | Found Prototype Device 1033 | -10/Subcaves | Identified V3-11A's Pendant 1053 | -10/Subcaves | Befriended Subdweller 1119 | -10/Subcaves | A swath of the cavern ceiling suddenly collapsed 1134 | -10/Subcaves | Discovered new exit (range 15) 1138 | -10/Subcaves | Identified exit to Materials 1175 | -10/Subcaves | Visited 4L-MR0's lab 1178 | -10/Subcaves | Befriended Subdweller 1178 | -10/Subcaves | Befriended Subdweller 1178 | -10/Subcaves | Befriended Subdweller 1184 | -10/Subcaves | Found Meta Core 1185 | -10/Subcaves | Attached Meta Core, gained temporary slots: Propulsion, Utility, Weapon 1217 | -10/Subcaves | Ambushed by Subdwellers from Twisted Machinery 1218 | -10/Subcaves | Befriended Subdweller 1218 | -10/Subcaves | Befriended Subdweller 1280 | -10/Subcaves | Shifting Twisted Machinery released Sub. Machine Gun 1283 | -10/Subcaves | A swath of the cavern ceiling suddenly collapsed 1284 | -10/Subcaves | Shifting Twisted Machinery released Riot Gun 1289 | -10/Subcaves | Learned Materials stockpile data 1290 | -10/Subcaves | Learned location of Storage (-8) 1303 | -10/Subcaves | Build established: Sprinter 1423 | -10/Subcaves | Entered Materials 1423 | -8/Materials | Accompanied by 5 allies 1424 | -8/Materials | Core integrity fell below 50% 1425 | -8/Materials | Reached level 3 1426 | -8/Materials | Upgraded with Utility slot (x1) 1453 | -8/Materials | Reached level 4 1454 | -8/Materials | Upgraded with Propulsion slot (x1) 1454 | -8/Materials | Upgraded with Utility slot (x1) 1505 | -8/Materials | Discovered new exit (range 6) 1671 | -8/Materials | Reached level 5 1689 | -8/Materials | Upgraded with Propulsion slot (x1) 1729 | -8/Materials | Build established: Scout 1789 | -8/Materials | Learned location of 2 exits from Factory 1797 | -8/Materials | Identified exit to Storage 1817 | -8/Materials | Discovered new exit (range 19) 1852 | -8/Materials | Identified exit to Factory 1906 | -8/Materials | Entered Storage 1958 | -8/Storage | Reached level 6 2155 | -8/Storage | Met a pair of Derelict thieves 2166 | -8/Storage | Upgraded with Utility slot (x1) 2204 | -8/Storage | Garrison activated, responded to threat 2219 | -8/Storage | Reached level 7 2219 | -8/Storage | Upgraded with Power slot (x1) 2306 | -8/Storage | First assault squad dispatched 2375 | -8/Storage | Reached level 8 2486 | -8/Storage | Discovered exit to Factory (range 16) 2518 | -8/Storage | Assisted by bots powering up and referring to "LRC-V3" 2525 | -8/Storage | Entered Factory 2525 | -7/Factory | Accompanied by 10 allies 2526 | -7/Factory | Identified exit to Factory 2526 | -7/Factory | Identified exit to Lower Caves 2527 | -7/Factory | Reached level 9 2564 | -7/Factory | Garrison activated, responded to threat 2783 | -7/Factory | Discovered exit to Lower Caves (range 16) 2812 | -7/Factory | Garrison activated, responded to threat 2828 | -7/Factory | Reached level 10 2830 | -7/Factory | Upgraded with Weapon slot (x1) 2942 | -7/Factory | Build established: Hacker-Sprinter 3010 | -7/Factory | Central database locked down 3071 | -7/Factory | Learned location of Archives (-5) 3094 | -7/Factory | Learned Extension stockpile data 3112 | -7/Factory | Learned Hub_04(d) non-interactive machine intel 3124 | -7/Factory | Learned Extension stockpile data 3338 | -7/Factory | Reached level 11 3413 | -7/Factory | Upgraded with Weapon slot (x1) 3439 | -7/Factory | Sucked down chute 3439 | -7/Factory | Entered Waste 3454 | -7/Waste | EMP discharged 3478 | -7/Waste | Spotted C-40 Crusher 3549 | -7/Waste | Spotted C-40 Crusher 3554 | -7/Waste | EMP discharged 3554 | -7/Waste | System corruption reached 10% 3559 | -7/Waste | Spotted C-40 Crusher 3559 | -7/Waste | Spotted C-40 Crusher 3562 | -7/Waste | Spotted C-40 Crusher 3564 | -7/Waste | Spotted C-40 Crusher 3566 | -7/Waste | Discovered new exit (range 16) 3569 | -7/Waste | Identified exit to Factory 3569 | -7/Waste | Entered Factory 3823 | -7/Factory | Discovered exit to Lower Caves (range 15) 3834 | -7/Factory | Entered Lower Caves 3835 | -7/Lower Caves | Encountered a Warlord checkpoint 3856 | -7/Lower Caves | Learned location of 1 exit from Factory 3893 | -7/Lower Caves | Learned Factory emergency access door positions 3899 | -7/Lower Caves | Discovered new exit (range 12) 3901 | -7/Lower Caves | Identified exit to Lower Caves 3935 | -7/Lower Caves | Entered another Lower Caves area 3937 | -7/Lower Caves | Reached level 12 3956 | -7/Lower Caves | Learned location of 2 exits from Factory 3962 | -7/Lower Caves | Attracted the attention of an 0b10 base 4011 | -7/Lower Caves | Learned location of Armory (-4) 4011 | -7/Lower Caves | Learned Factory stockpile data 4011 | -7/Lower Caves | Learned Armory security intel 4017 | -7/Lower Caves | Destroyed 7 combat bots 4071 | -7/Lower Caves | Discovered new exit (range 10) 4072 | -7/Lower Caves | Identified exit to Zion 4073 | -7/Lower Caves | Entered Zion 4075 | -7/Zion | Reached level 13 4075 | -7/Zion | Upgraded with Utility slot (x1) 4084 | -7/Zion | System corruption cleaned by Quarantine Array 4131 | -7/Zion | Learned Factory emergency access door positions 4140 | -7/Zion | Visited the Megawrench Repair Shop 4140 | -7/Zion | Megawrench repaired 4 parts 4145 | -7/Zion | Found Prototype Special Weapon 4146 | -7/Zion | Identified RU-N14's Throwing Claymores 4156 | -7/Zion | Learned location of Warlord (-5) 4168 | -7/Zion | Learned location of Data Miner (-6) 4234 | -7/Zion | Learned Factory emergency access door positions 4249 | -7/Zion | Met Imprinter 4252 | -7/Zion | Imprinted 4254 | -7/Zion | Declared Zion's savior 4280 | -7/Zion | Given A8's code to call for help 4343 | -7/Zion | Discovered new exit (range 11) 4344 | -7/Zion | Given the Hacking Drone Bay 4353 | -7/Zion | Found GAL Module 4364 | -7/Zion | Identified exit to Proximity Caves 4546 | -7/Zion | Entered Proximity Caves 4546 | -6/Proximity Caves | Accompanied by 4 allies 4609 | -6/Proximity Caves | Reached level 14 4618 | -6/Proximity Caves | Upgraded with Utility slot (x1) 4619 | -6/Proximity Caves | Upgraded with Power slot (x1) 4659 | -6/Proximity Caves | Spotter reported a threat 4715 | -6/Proximity Caves | Found Alien Artifact 4715 | -6/Proximity Caves | Identified Dimensional Node Initializer 4715 | -6/Proximity Caves | Initialized slip node 4740 | -6/Proximity Caves | Spotted B-75 Beast 4914 | -6/Proximity Caves | Entered Factory 4914 | -6/Factory | Accompanied by 3 allies 4915 | -6/Factory | Identified exit to Factory 4916 | -6/Factory | Identified exit to Lower Caves 4916 | -6/Factory | Reached level 15 5033 | -6/Factory | Entered Lower Caves 5035 | -6/Lower Caves | Reached level 16 5045 | -6/Lower Caves | Learned location of 1 exit from Factory 5115 | -6/Lower Caves | Discovered new exit (range 9) 5119 | -6/Lower Caves | Identified exit to Lower Caves 5132 | -6/Lower Caves | Found Prototype Device 5132 | -6/Lower Caves | Identified Heart of Steel 5153 | -6/Lower Caves | Attacked by a delusional Derelict stockpiling parts 5319 | -6/Lower Caves | Entered another Lower Caves area 5331 | -6/Lower Caves | Learned location of Extension (-5) 5331 | -6/Lower Caves | Identified exit to Data Miner 5331 | -6/Lower Caves | Learned location of 1 exit from Research 5331 | -6/Lower Caves | Learned Extension stockpile data 5331 | -6/Lower Caves | Learned Armory security intel 5406 | -6/Lower Caves | Entered Factory 5407 | -5/Factory | Identified exit to Upper Caves 5407 | -5/Factory | Identified exit to Extension 5408 | -5/Factory | Identified exit to Factory 5408 | -5/Factory | Reached level 17 5410 | -5/Factory | Identified exit to DSF 5413 | -5/Factory | Sucked down chute 5413 | -5/Factory | Entered Waste 5414 | -5/Waste | Met a frightened Derelict 5415 | -5/Waste | Spotted C-40 Crusher 5430 | -5/Waste | Spotted C-40 Crusher 5431 | -5/Waste | Spotted C-40 Crusher 5431 | -5/Waste | Spotted C-40 Crusher 5451 | -5/Waste | Spotted C-40 Crusher 5453 | -5/Waste | Spotted C-40 Crusher 5455 | -5/Waste | Discovered new exit (range 17) 5458 | -5/Waste | Warlord forces began an assault 5472 | -5/Waste | Allies destroyed C-40 Crusher 5479 | -5/Waste | Allies destroyed C-40 Crusher 5484 | -5/Waste | Allies destroyed C-40 Crusher 5485 | -5/Waste | Allies destroyed C-40 Crusher 5487 | -5/Waste | Allies destroyed C-40 Crusher 5693 | -5/Waste | Heart of Steel transformed into Warbot 5705 | -5/Waste | Identified exit to Factory 5732 | -5/Waste | Entered Factory 5732 | -5/Factory | Accompanied by 20 allies (Warbot) 5782 | -5/Factory | Retrieved Zion intel report: Emergency Access 5803 | -5/Factory | Allied Derelicts emerged from ambush trap array 5856 | -5/Factory | Reached level 18 5862 | -5/Factory | Retrieved Zion intel report: Depthwide Sectors/-4 5870 | -5/Factory | Retrieved Zion intel report: Prototype Schematics 5940 | -5/Factory | Lost 3 allies 5982 | -5/Factory | Reached level 19 5990 | -5/Factory | Upgraded with Utility slot (x1) 6016 | -5/Factory | Retrieved Zion intel report: Unaware Schematics 6038 | -5/Factory | Lost 3 allies 6043 | -5/Factory | Retrieved Zion intel report: Active Garrisons 6044 | -5/Factory | Zion Hacking Resupply teleported in 6073 | -5/Factory | Identified exit to Garrison 6086 | -5/Factory | Garrison activated, responded to threat 6088 | -5/Factory | Reached level 20 6113 | -5/Factory | Upgraded with Utility slot (x1) 6139 | -5/Factory | Reached level 21 6160 | -5/Factory | Destroyed 19 combat bots 6290 | -5/Factory | Fabricated Tiamat Missile Launcher (x1) 6332 | -5/Factory | First assault squad dispatched 6512 | -5/Factory | Entered Garrison 6512 | -5/Garrison | Accompanied by 1 ally (Warbot) 6547 | -5/Garrison | Triggered checkpoint 6548 | -5/Garrison | Reached level 22 6602 | -5/Garrison | Triggered checkpoint 6634 | -5/Garrison | Triggered checkpoint 6642 | -5/Garrison | Triggered checkpoint 6686 | -5/Garrison | Discovered new exit (range 12) 6688 | -5/Garrison | Identified exit to Factory 6752 | -5/Garrison | Triggered checkpoint 6754 | -5/Garrison | Enhanced Grunt warped into view, answering call for help 6756 | -5/Garrison | Enhanced Grunt warped into view, answering call for help 6763 | -5/Garrison | Core integrity fell below 50% 6860 | -5/Garrison | Triggered checkpoint 6879 | -5/Garrison | Attempted to install RIF, but system incompatible 6879 | -5/Garrison | Attempted to install RIF, but system incompatible 6889 | -5/Garrison | Discovered exit to Factory (range 3) 6909 | -5/Garrison | Entered Factory 6909 | -5/Factory | Accompanied by 2 allies 6930 | -5/Factory | Zion Hacker squad teleported in 6968 | -5/Factory | Zion Melee Resupply teleported in 7031 | -5/Factory | Discovered exit to Extension (range 16) 7071 | -5/Factory | Entered Extension 7071 | -5/Extension | Accompanied by 6 allies 7073 | -5/Extension | Reached level 23 7098 | -5/Extension | Rescued a captive Derelict 7110 | -5/Extension | Rescued a captive Derelict 7197 | -5/Extension | Spotted B-75 Beast 7213 | -5/Extension | Spotted B-75 Beast 7214 | -5/Extension | Destroyed B-75 Beast 7227 | -5/Extension | Core integrity fell below 20% 7232 | -5/Extension | Destroyed by B-75 Beast with Heavy Machine Gun Last Messages --------------- 07217_ Door Terminal disabled. 07218_ Scythe+ follow-up attack on B-75 Beast. 07218_ Chainsword+ follow-up attack on B-75 Beast. 07219_ Penetrated by Slug. 07220_ TM-S79(p) destroyed. 07220_ Slug penetrates Wall. 07220_ Penetrated by Slug. 07221_ Slug penetrates Wall. 07222_ Chainsword+ follow-up attack on B-75 Beast. 07222_ Slug penetrates Wall. 07224_ B-75 Beast suffers critical hit (Impale). 07224_ Chainsword+ follow-up attack on B-75 Beast. 07225_ Slug penetrates TM-QXZ(p). 07227_ K-01 Serf destroyed. 07227_ Slug penetrates TM-QXZ(p). 07231_ Slug penetrates Wall. 07231_ Chainsword+ follow-up attack on B-75 Beast. 07232_ TM-QXZ(p) destroyed. 07232_ Slug penetrates Wall. 07232_ Cesium-ion Thruster+ destroyed. Map ----- +----------------------------------------------------+ | ?????????????????????????????????????????????????? | | ?????????????????????????????????????????????????? | | ?????????????????????????????????????????????????? | | ?????????????????????????????????????????????????? | | ?????????????????????????????????????????????????? | | ?????????????????????????????????????????????????? | | ?????????????????????????????????????????????????? | | ???????????????? ??????????k?????????????????????? | | ?????????]?????? "???????????????????????????????? | | ??????????????? #???????????????????????????????? | | ??????????????? #????????? #????????????????????? | | ???????????????# #?######?? #????????????????????? | | ?????????????### ### ## ### ###??????????????????? | | ?????????????#"" "" "" ""#??????????????????? | | ?????????????# " " " " #??????????????????? | | ?????????????# A #??????????????????? | | ????????###??# Y #??????????????????? | | #########"#### #########??????????? | | u ??????????? | | =! ?????w????? | | ![!*! hY ??????????? | | != =*=!%! = ???????????? | | u!R!!%!=%|!!%= ?????????????? | | #########"####%]%!! BB #??????????????????? | | ????????###??#!=!* % hBB #??????????????????? | | #????????????# @ % #??????????????????? | | ##?##????????# % #??????????????????? | | !##"#????????# #??????????????????? | | #?????????###### #"""#####;#??????????????????? | | """#??????????????###????????? #?????????????????? | | ####?????????????????????????????????????????????? | | | | | | | | | | | | | | | | | | | | | | | | | | | | | | | | | | | | | | | +----------------------------------------------------+ Best States ------------- Heat Dissipation 67 Energy Generation 53 Energy Capacity 580 Matter Stores 300 Matter Capacity 300 Sight Range 20 Robot Scan Range 24 Terrain Scan Range 16 Terrain Scan Density 810 Additional Mass Support 9 Base Temperature (-) 100 Armor Coverage 300 Point Defense Rating 80 Melee Speed Boost 40 Phase Shifting 5 Evasion (%) 81 Melee Accuracy 8 Target Analysis 5 Offensive Hacking 32 Defensive Hacking 26 Item Schematics ----------------- Mni. Smartbomb Launcher | -5/Factory | Z-intel Plasma Sword | -5/Factory | Z-intel Cld. Plasma Rifle | -5/Factory | Z-intel Prc. Assault Rifle | -5/Factory | Z-intel Imp. Energy Well | -5/Factory | Z-intel Kinetic Spear | -5/Factory | Z-intel Cld. Cesium-ion Thruster | -5/Factory | Z-intel Tiamat Missile Launcher | -5/Factory | Z-intel Com. Ion Cannon | -5/Factory | Z-intel Robot Schematics ------------------ A-02 Transporter | -5/Factory | Z-intel R-10 Processor | -5/Factory | Z-intel B-60 Warrior | -5/Factory | Z-intel E-15 Imp | -5/Factory | Z-intel S-27 Virus | -5/Factory | Z-intel Fabricated ------------ Tiamat Missile Launcher | x1 | -5/Factory Repaired ---------- VTOL Module | 48% | -10/Materials Studied --------- Maul | -8/Materials | Hacked Flight Unit | -8/Materials | Hacked Cesium-ion Thruster | -7/Factory | Hacked VTOL Module | -7/Factory | Hacked Axe | -7/Factory | Hacked Lgt. Nuclear Core | -7/Factory | Hacked Chainsword | -7/Factory | Hacked Katana | -7/Factory | Hacked Mic. Nuclear Core | -5/Factory | Hacked Great Axe | -5/Factory | Hacked Scythe | -5/Factory | Hacked Fusion Compressor | -5/Factory | Hacked Imp. Datajack | -5/Factory | Hacked Alien Tech Used ----------------- Dimensional Node Initializer Achievements -------------- Below Brother of Steel Generalissimo Into The Breach Maximum Efficiency No Explosion For You SUBSUB We Are Legion Challenges ------------ None RPGLIKE | -11 -10 -10 -8 -8 -7 -7 -7 -7 -7 -7 -6 -6 -6 -6 -5 -5 -5 -5 -5 -5 --------- Run | Yrd Mat Sub Mat Sto Fac Was Fac Low Low Zio Pro Fac Low Low Fac Was Fac Gar Fac Ext Levels Raised 22 | . . 1 3 3 3 . . . 1 1 1 1 1 . 1 . 4 1 . 1 XP Earned 36330 | 3000 1325 1353 3581 4644 4500 200 80 600 1350 800 1866 1770 500 600 1500 290 6161 1481 277 452 XP Spent 34275 | 2250 375 1875 4470 4415 4510 . . . . 1700 2900 1400 1580 . . 750 6670 1380 . . Upgrades 62 | 5 5 4 5 12 7 . . . . 1 3 2 7 . . 1 4 6 . . Power Slot 2 | . . . . 1 . . . . . . 1 . . . . . . . . . Propulsion Slot 4 | 1 . 1 2 . . . . . . . . . . . . . . . . . Utility Slot 8 | 1 . . 2 1 . . . . . 1 1 . . . . . 2 . . . Weapon Slot 4 | 1 . 1 . . 2 . . . . . . . . . . . . . . . Core Integrity 2 | . . . . . . . . . . . . . 2 . . . . . . . Heat Dissipation 7 | . 1 . 1 1 1 . . . . . . . 2 . . . 1 . . . Mass Support 4 | . 1 . . . . . . . . . . 1 1 . . . 1 . . . Inventory Capacity 3 | 2 . . . . . . . . . . . . . . . 1 . . . . Sight Range 1 | . . . . . . . . . . . 1 . . . . . . . . . Sensor Range 10 | . 3 2 . 5 . . . . . . . . . . . . . . . . Terrain Scan Density 8 | . . . . . . . . . . . . . 2 . . . . 6 . . Melee Accuracy 2 | . . . . . 2 . . . . . . . . . . . . . . . Hack Attack % 4 | . . . . 2 1 . . . . . . 1 . . . . . . . . Hack Defense % 3 | . . . . 2 1 . . . . . . . . . . . . . . . Protomatter Created 1635 | . 29 21 132 341 99 . . 58 157 . 58 . 176 . . . 448 97 . 19 Integrity Restored 3329 | . 87 63 545 786 103 . . 49 135 . 59 . 137 . . . 948 360 . 57 Core 2903 | . 87 63 521 520 95 . . 26 135 . 47 . 97 . . . 895 360 . 57 Parts 426 | . . . 24 266 8 . . 23 . . 12 . 40 . . . 53 . . . Protomatter Decayed 1669 | . . . 80 191 389 . . 38 112 . 160 . 77 . . . 612 10 . . Game ------ Seed ShadePitchforkCapacitor Manual? 0 Play Time 03:12:57 Cumulative 41.0 hours Start 2025.10.29 @ 22:57:15 End 2025.10.30 @ 02:25:21 Sessions 1 Manual Loads 0 Difficulty Rogue Special Mode Winter2019/RPGLIKE Game No. 36 Rogue 36 Adventurer 0 Explorer 0 Win Type - Total 0 Types 0/0/0/0/0/0/0/0/0/0 Lore% 28 Gallery% 29 Achievement% 27 Wizard Run 0 Options --------- Layout 0 ASCII 0 Keyboard 0 Movement Mouse Keybinds 0 Fullscreen 2 Font 24/Smallcaps Map View 76x50 Zoom Use 0% Tactical HUD 1 Map Filters NONE Filters NONE Steam 1 RUN: 644d2c20-1823-4853-b9b6-f2509a436f86